fUSD/lending_fUSD_20250217
["ID","MTS","AMOUNT","RATE_DAILY","PERIOD"]
[353381403,1739807467162,-500.0,0.00014027,2]
[353381404,1739807467172,-649.57,0.00014027,2]
[353381405,1739807467181,-500.0,0.00014027,2]
[353381406,1739807467190,-658.48,0.00014027,2]
[353381407,1739807467199,-876.0,0.00014027,2]
[353381408,1739807467209,-500.0,0.00014027,2]
[353381409,1739807467219,-500.0,0.00014027,2]
[353381410,1739807467228,-500.0,0.00014027,2]
[353381411,1739807467238,-1088.47,0.00014027,2]
[353381412,1739807467247,-720.55,0.00014027,2]
[353381413,1739807467256,-806.09,0.00014027,2]
[353381414,1739807467266,-500.0,0.00014027,2]
[353381415,1739807467276,-500.0,0.00014027,2]
[353381416,1739807467286,-500.0,0.00014027,2]
[353381417,1739807467295,-946.71,0.00014027,2]
[353381418,1739807467306,-553.22,0.00014027,2]
[353381419,1739807467321,-500.0,0.00014027,2]
[353381420,1739807467330,-668.58,0.00014027,2]
[353381421,1739807467340,-500.0,0.00014027,2]
[353381422,1739807467350,-500.0,0.00014027,2]
[353381423,1739807467360,-998.85,0.00014027,2]
[353381424,1739807467369,-835.93,0.00014027,2]
[353381425,1739807467380,-500.0,0.00014027,2]
[353381426,1739807467390,-1006.39,0.00014027,2]
[353381427,1739807467400,-500.0,0.00014027,2]
[353381428,1739807467410,-500.0,0.00014027,2]
[353381429,1739807467420,-500.0,0.00014027,2]
[353381430,1739807467430,-686.36,0.00014027,2]
[353381431,1739807467439,-1087.94,0.00014027,2]
[353381432,1739807467449,-820.65,0.00014027,2]
[353381433,1739807467459,-500.0,0.00014027,2]
[353381434,1739807467469,-868.32,0.00014027,2]
[353381435,1739807467478,-640.41,0.00014027,2]
[353381436,1739807467488,-538.04,0.00014027,2]
[353381437,1739807467498,-500.0,0.00014027,2]
[353381438,1739807467508,-964.43,0.00014027,2]
[353381439,1739807467518,-500.0,0.00014027,2]
[353381440,1739807467527,-500.0,0.00014027,2]
[353381441,1739807467537,-500.0,0.00014027,2]
[353381442,1739807467547,-500.0,0.00014027,2]
[353381443,1739807467558,-500.0,0.00014027,2]
[353381444,1739807467571,-1160.76,0.00014027,2]
[353381445,1739807467580,-500.0,0.00014027,2]
[353381446,1739807467590,-554.97,0.00014027,2]
[353381447,1739807467601,-500.0,0.00014027,2]
[353381448,1739807467611,-500.0,0.00014027,2]
[353381449,1739807467621,-663.55,0.00014027,2]
[353381450,1739807467630,-630.26,0.00014027,2]
[353381451,1739807467639,-551.48,0.00014027,2]
[353381452,1739807467649,-769.55,0.00014027,2]
[353381453,1739807467659,-636.61,0.00014027,2]
[353381454,1739807467668,-620.74,0.00014027,2]
[353381455,1739807467677,-622.98,0.00014027,2]
[353381456,1739807467687,-923.67,0.00014027,2]
[353381457,1739807467696,-532.9,0.00014027,2]
[353381458,1739807467706,-500.0,0.00014027,2]
[353381459,1739807467715,-726.8,0.00014027,2]
[353381460,1739807467725,-540.32,0.00014027,2]
[353381461,1739807467735,-650.65,0.00014027,2]
[353381462,1739807467745,-500.0,0.00014027,2]
[353381463,1739807467755,-1118.82,0.00014027,2]
[353381464,1739807467765,-500.0,0.00014027,2]
[353381465,1739807467774,-1078.45,0.00014027,2]
[353381466,1739807467784,-500.0,0.00014027,2]
[353381467,1739807467793,-685.22,0.00014027,2]
[353381468,1739807467803,-1070.7,0.00014027,2]
[353381469,1739807467815,-500.0,0.00014027,2]
[353381470,1739807467824,-500.0,0.00014027,2]
[353381471,1739807467834,-1539.55,0.00014027,2]
[353381472,1739807467843,-500.0,0.00014027,2]
[353381473,1739807467852,-747.79,0.00014027,2]
[353381474,1739807467863,-1026.38,0.00014027,2]
[353381475,1739807467873,-975.52,0.00014027,2]
[353381476,1739807467883,-678.17,0.00014027,2]
[353381477,1739807467892,-594.06,0.00014027,2]
[353381478,1739807467902,-780.0,0.00014027,2]
[353381479,1739807467912,-1153.12,0.00014027,2]
[353381480,1739807467924,-500.0,0.00014027,2]
[353381481,1739807467934,-1066.97,0.00014027,2]
[353381482,1739807467944,-1019.8,0.00014027,2]
[353381483,1739807467954,-560.06,0.00014027,2]
[353381484,1739807467964,-633.55,0.00014027,2]
[353381485,1739807467973,-1048.88,0.00014027,2]
[353381486,1739807467982,-626.8,0.00014027,2]
[353381487,1739807467991,-723.6,0.00014027,2]
[353381488,1739807468001,-500.0,0.00014027,2]
[353381489,1739807468010,-500.0,0.00014027,2]
[353381490,1739807468020,-551.93,0.00014027,2]
[353381491,1739807468030,-756.98,0.00014027,2]
[353381492,1739807468039,-852.93,0.00014027,2]
[353381493,1739807468049,-1050.49,0.00014027,2]
[353381494,1739807468059,-500.0,0.00014027,2]
[353381495,1739807468072,-500.0,0.00014027,2]
[353381496,1739807468082,-500.0,0.00014027,2]
[353381497,1739807468092,-500.0,0.00014027,2]
[353381498,1739807468102,-1267.08,0.00014027,2]
[353381499,1739807468112,-1036.5,0.00014027,2]
[353381500,1739807468122,-1011.2,0.00014027,2]
[353381501,1739807468131,-500.0,0.00014027,2]
[353381502,1739807468142,-500.0,0.00014027,2]
[353381503,1739807468151,-601.83,0.00014027,2]
[353381504,1739807468161,-500.0,0.00014027,2]
[353381505,1739807468171,-500.0,0.00014027,2]
[353381506,1739807468180,-1580.87,0.00014027,2]
[353381507,1739807468190,-620.39,0.00014027,2]
[353381508,1739807468199,-587.68,0.00014027,2]
[353381509,1739807468209,-660.55,0.00014027,2]
[353381510,1739807468219,-801.21,0.00014027,2]
[353381511,1739807468229,-2046.76,0.00014027,2]
[353381512,1739807468239,-790.46,0.00014027,2]
[353381513,1739807468249,-500.0,0.00014027,2]
[353381514,1739807468259,-681.15,0.00014027,2]
[353381515,1739807468268,-565.07,0.00014027,2]
[353381516,1739807468278,-500.0,0.00014027,2]
[353381517,1739807468287,-500.0,0.00014027,2]
[353381518,1739807468297,-500.0,0.00014027,2]
[353381519,1739807468307,-2398.73,0.00014027,2]
[353381520,1739807468319,-500.0,0.00014027,2]
[353381521,1739807468330,-2019.76,0.00014027,2]
[353381522,1739807468339,-500.0,0.00014027,2]
[353381523,1739807468350,-500.0,0.00014027,2]
[353381524,1739807468359,-1604.62,0.00014027,2]
[353381525,1739807468369,-534.13,0.00014027,2]
[353381526,1739807468379,-1719.53,0.00014027,2]
[353381527,1739807468389,-594.76556832,0.00014027,2]
[353381528,1739807468399,-1063.26,0.00014027,2]
[353381529,1739807468409,-500.0,0.00014027,2]
[353381530,1739807468419,-562.89,0.00014027,2]
[353381531,1739807468428,-1290.74,0.00014027,2]
[353381532,1739807468439,-1133.18,0.00014027,2]
[353381533,1739807468449,-500.0,0.00014027,2]
[353381534,1739807468459,-520.45,0.00014027,2]
[353381535,1739807468468,-2505.64,0.00014027,2]
[353381536,1739807468479,-500.0,0.00014027,2]
[353381537,1739807468489,-564.08,0.00014027,2]
[353381538,1739807468499,-500.0,0.00014027,2]
[353381539,1739807468508,-517.74,0.00014027,2]
[353381540,1739807468519,-814.48,0.00014027,2]
[353381541,1739807468528,-1057.17,0.00014027,2]
[353381542,1739807468538,-739.21,0.00014027,2]
[353381543,1739807468548,-1202.79,0.00014027,2]
[353381544,1739807468558,-621.24,0.00014027,2]
[353381545,1739807468569,-500.0,0.00014027,2]
[353381546,1739807468579,-1418.14,0.00014027,2]
[353381547,1739807468589,-654.78,0.00014027,2]
[353381548,1739807468598,-4371.68,0.00014027,2]
[353381549,1739807468608,-1707.3,0.00014027,2]
[353381550,1739807468618,-572.8,0.00014027,2]
[353381551,1739807468627,-588.02,0.00014027,2]
[353381552,1739807468637,-150.0,0.00014027,2]
[353381553,1739807468647,-1519.54,0.00014027,2]
[353381554,1739807468657,-797.96,0.00014027,2]
[353381555,1739807468667,-500.0,0.00014027,2]
[353381556,1739807468677,-2432.52,0.00014027,2]
[353381557,1739807468687,-500.0,0.00014027,2]
[353381558,1739807468696,-552.32,0.00014027,2]
[353381559,1739807468705,-500.0,0.00014027,2]
[353381560,1739807468715,-1511.33,0.00014027,2]
[353381561,1739807468725,-1043.05,0.00014027,2]
[353381562,1739807468734,-1468.51,0.00014027,2]
[353381563,1739807468745,-541.45,0.00014027,2]
[353381564,1739807468755,-1112.54,0.00014027,2]
[353381565,1739807468765,-500.0,0.00014027,2]
[353381566,1739807468775,-1039.9,0.00014027,2]
[353381567,1739807468785,-1196.9,0.00014027,2]
[353381568,1739807468795,-812.67,0.00014027,2]
[353381569,1739807468804,-500.0,0.00014027,2]
[353381570,1739807468815,-2132.15,0.00014027,2]
[353381571,1739807468825,-1050.4,0.00014027,2]
[353381572,1739807468835,-1483.69,0.00014027,2]
[353381573,1739807468844,-1369.18,0.00014027,2]
[353381574,1739807468854,-500.0,0.00014027,2]
[353381575,1739807468864,-653.46,0.00014027,2]
[353381576,1739807468874,-1965.34,0.00014027,2]
[353381577,1739807468884,-2581.63,0.00014027,2]
[353381578,1739807468894,-1894.74,0.00014027,2]
[353381579,1739807468903,-1801.72,0.00014027,2]
[353381580,1739807468916,-1435.92,0.00014027,2]
[353381581,1739807468927,-500.0,0.00014027,2]
[353381582,1739807468938,-676.24,0.00014027,2]
[353381583,1739807468948,-828.24,0.00014027,2]
[353381584,1739807468959,-500.0,0.00014027,2]
[353381585,1739807468969,-1066.36,0.00014027,2]
[353381586,1739807468979,-500.0,0.00014027,2]
[353381587,1739807468988,-1345.58,0.00014027,2]
[353381588,1739807469000,-1657.31,0.00014027,2]
[353381589,1739807469009,-1425.4,0.00014027,2]
[353381590,1739807469019,-2229.85,0.00014027,2]
[353381591,1739807469028,-525.74,0.00014027,2]
[353381592,1739807469038,-1884.16,0.00014027,2]
[353381593,1739807469047,-1194.03,0.00014027,2]
[353381594,1739807469056,-1836.48,0.00014027,2]
[353381595,1739807469067,-1606.52,0.00014027,2]
[353381596,1739807469076,-1788.94,0.00014027,2]
[353381597,1739807469086,-1804.02,0.00014027,2]
[353381598,1739807469096,-504.37586616,0.00014027,2]
[353381599,1739807469105,-2166.2,0.00014027,2]
[353381600,1739807469116,-2535.58,0.00014027,2]
[353381601,1739807469125,-853.36,0.00014027,2]
[353381602,1739807469135,-1126.0,0.00014027,2]
[353381603,1739807469145,-638.12,0.00014027,2]
[353381604,1739807469155,-2061.78,0.00014027,2]
[353381605,1739807469165,-2134.86,0.00014027,2]
[353381606,1739807469175,-500.0,0.00014027,2]
[353381607,1739807469184,-500.0,0.00014027,2]
[353381608,1739807469193,-1842.58,0.00014027,2]
[353381609,1739807469203,-1072.73,0.00014027,2]
[353381610,1739807469213,-7885.42,0.00014027,2]
[353381611,1739807469223,-500.0,0.00014027,2]
[353381612,1739807469233,-5452.19,0.00014027,2]
[353381613,1739807469243,-2172.79,0.00014027,2]
[353381614,1739807469253,-500.0,0.00014027,2]
[353381615,1739807469263,-1374.81,0.00014027,2]
[353381616,1739807469274,-2458.85,0.00014027,2]
[353381617,1739807469284,-2858.9,0.00014027,2]
[353381618,1739807469294,-500.0,0.00014027,2]
[353381619,1739807469304,-882.69,0.00014027,2]
[353381620,1739807469315,-651.75,0.00014027,2]
[353381621,1739807469325,-500.0,0.00014027,2]
[353381622,1739807469335,-500.0,0.00014027,2]
[353381623,1739807469345,-2720.75,0.00014027,2]
[353381624,1739807469355,-1648.91,0.00014027,2]
[353381625,1739807469365,-1178.62,0.00014027,2]
[353381626,1739807469375,-2204.17,0.00014027,2]
[353381627,1739807469386,-500.0,0.00014027,2]
[353381628,1739807469395,-1814.85,0.00014027,2]
[353381629,1739807469405,-1380.68,0.00014027,2]
[353381630,1739807469415,-500.0,0.00014027,2]
[353381631,1739807469426,-1938.39,0.00014027,2]
[353381632,1739807469436,-2244.08,0.00014027,2]
[353381633,1739807469445,-2071.51,0.00014027,2]
[353381634,1739807469455,-500.0,0.00014027,2]
[353381635,1739807469464,-500.6,0.00014027,2]
[353381636,1739807469474,-612.79,0.00014027,2]
[353381637,1739807469484,-581.63,0.00014027,2]
[353381638,1739807469494,-500.0,0.00014027,2]
[353381639,1739807469505,-2400.66,0.00014027,2]
[353381640,1739807469515,-1207.45,0.00014027,2]
[353381641,1739807469525,-3070.4,0.00014027,2]
[353381642,1739807469536,-1143.41,0.00014027,2]
[353381643,1739807469547,-386.35694966,0.00014027,2]
[353381644,1739807469557,-500.0,0.00014027,2]
[353381645,1739807469570,-1197.99,0.00014027,2]
[353381646,1739807469580,-1667.68,0.00014027,2]
[353381647,1739807469591,-500.0,0.00014027,2]
[353381648,1739807469602,-500.0,0.00014027,2]
[353381649,1739807469612,-500.0,0.00014027,2]
[353381650,1739807469621,-1541.63,0.00014027,2]
[353381651,1739807469631,-5518.95,0.00014027,2]
[353381652,1739807469641,-1955.16,0.00014027,2]
[353381653,1739807469651,-1942.56,0.00014027,2]
[353381654,1739807469661,-1149.06,0.00014027,2]
[353381655,1739807469672,-500.0,0.00014027,2]
[353381656,1739807469682,-500.0,0.00014027,2]
[353381657,1739807469691,-1153.07,0.00014027,2]
[353381658,1739807469700,-500.0,0.00014027,2]
[353381659,1739807469710,-1541.27,0.00014027,2]
[353381660,1739807469719,-500.0,0.00014027,2]
[353381661,1739807469729,-500.0,0.00014027,2]
[353381662,1739807469739,-500.0,0.00014027,2]
[353381663,1739807469749,-1315.16,0.00014027,2]
[353381664,1739807469759,-500.0,0.00014027,2]
[353381665,1739807469770,-1801.98,0.00014027,2]
[353381666,1739807469780,-500.0,0.00014027,2]
[353381667,1739807469790,-500.0,0.00014027,2]
[353381668,1739807469800,-1138.66,0.00014027,2]
[353381669,1739807469810,-2082.88,0.00014027,2]
[353381670,1739807469821,-1943.42,0.00014027,2]
[353381671,1739807469831,-500.0,0.00014027,2]
[353381672,1739807469840,-2980.55,0.00014027,2]
[353381673,1739807469850,-500.0,0.00014027,2]
[353381674,1739807469860,-1537.9,0.00014027,2]
[353381675,1739807469869,-951.04,0.00014027,2]
[353381676,1739807469879,-3797.93,0.00014027,2]
[353381677,1739807469889,-1352.91,0.00014027,2]
[353381678,1739807469898,-2181.55,0.00014027,2]
[353381679,1739807469909,-1240.17,0.00014027,2]
[353381680,1739807469919,-712.01,0.00014027,2]
[353381681,1739807469932,-500.0,0.00014027,2]
[353381682,1739807469942,-1396.2,0.00014027,2]
[353381683,1739807469952,-3051.02,0.00014027,2]
[353381684,1739807469961,-1258.31,0.00014027,2]
[353381685,1739807469973,-746.18,0.00014027,2]
[353381686,1739807469982,-1484.24,0.00014027,2]
[353381687,1739807469991,-1478.39,0.00014027,2]
[353381688,1739807470003,-1244.08,0.00014027,2]
[353381689,1739807470013,-664.49,0.00014027,2]
[353381690,1739807470023,-534.95,0.00014027,2]
[353381691,1739807470032,-1341.95,0.00014027,2]
[353381692,1739807470042,-1458.02,0.00014027,2]
[353381693,1739807470051,-1165.58,0.00014027,2]
[353381694,1739807470061,-1002.63,0.00014027,2]
[353381695,1739807470072,-2070.07,0.00014027,2]
[353381696,1739807470083,-1827.24,0.00014027,2]
[353381697,1739807470092,-1336.55,0.00014027,2]
[353381698,1739807470101,-2645.65,0.00014027,2]
[353381699,1739807470111,-500.0,0.00014027,2]
[353381700,1739807470121,-893.96,0.00014027,2]
[353381701,1739807470131,-1074.8,0.00014027,2]
[353381702,1739807470140,-670.42,0.00014027,2]
[353381703,1739807470150,-1489.8,0.00014027,2]
[353381704,1739807470159,-500.0,0.00014027,2]
[353381705,1739807470168,-2198.3,0.00014027,2]
[353381706,1739807470179,-150.0,0.00014028,2]
[353381707,1739807470356,-1000.0,0.0001403,2]
[353381708,1739807470367,-150.0,0.00014031,2]
[353381709,1739807470377,-150.0,0.00014036,2]
[353381710,1739807470387,-150.0,0.00014037,2]
[353381711,1739807470397,-150.0,0.00014038,2]
[353381712,1739807470407,-150.0,0.00014038,2]
[353381713,1739807470417,-150.0,0.0001404,2]
[353381714,1739807470426,-150.0,0.0001404,2]
[353381715,1739807470436,-150.0,0.0001404,2]
[353381716,1739807470446,-848.67,0.00014042,2]
[353381717,1739807470457,-150.0,0.00014045,2]
[353381718,1739807470467,-150.0,0.00014047,2]
[353381719,1739807470477,-150.0,0.00014049,2]
[353381720,1739807470487,-150.0,0.00014049,2]
[353381721,1739807470497,-150.0,0.0001405,2]
[353381722,1739807470507,-150.0,0.00014051,2]
[353381723,1739807470517,-504.30145883,0.00014054,2]
[353381724,1739807470526,-538.6426739,0.00014054,2]
[353381725,1739807470536,-2733.35226029,0.00014055,2]
[353381726,1739807470546,-152.0,0.00014059,6]
[353381727,1739807470556,-150.0,0.0001406,2]
[353381728,1739807470565,-150.0,0.00014063,2]
[353381729,1739807470577,-150.0,0.00014066,2]
[353381730,1739807470587,-150.0,0.00014067,2]
[353381731,1739807470599,-150.0,0.00014067,2]
[353381732,1739807470609,-150.0,0.00014068,2]
[353381733,1739807470619,-150.0,0.00014069,2]
[353381734,1739807470629,-150.0,0.0001407,2]
[353381735,1739807470639,-1000.0,0.00014079,2]
[353381736,1739807470650,-150.0,0.0001408,2]
[353381737,1739807470659,-500.0,0.00014081,2]
[353381738,1739807470669,-150.0,0.00014082,2]
[353381739,1739807470679,-150.0,0.00014087,2]
[353381740,1739807470689,-890.11007836,0.00014091,2]
[353381741,1739807470699,-27052.791908,0.00014091,2]
[353381742,1739807470709,-193.98993342,0.00014091,2]
[353381743,1739807470718,-3270.74029886,0.00014091,2]
[353381744,1739807470728,-2246.07439167,0.00014091,2]
[353381745,1739807470737,-1086.3483316,0.00014099,2]
[353381746,1739807470747,-4684.7040633,0.00014099,2]
[353381747,1739807470757,-6892.4959456,0.00014099,2]
[353381748,1739807470767,-1585.81328,0.00014099,2]
[353381749,1739807470777,-3025.02182793,0.000141,2]
[353381750,1739807470787,-848.67,0.00014108,2]
[353381751,1739807470797,-150.0,0.00014109,2]
[353381752,1739807470807,-150.0,0.00014109,2]
[353381753,1739807470820,-150.0,0.00014109,2]
[353381754,1739807470830,-1463.57173244,0.00014109,2]
[353381755,1739807470840,-640.42205314,0.00014109,2]
[353381756,1739807470850,-1000.17035788,0.00014109,2]
[353381757,1739807470860,-150.0,0.00014109,2]
[353381758,1739807470870,-869.210235,0.00014109,2]
[353381759,1739807470879,-10322.0816067,0.00014109,2]
[353381760,1739807470889,-805.829032,0.00014109,2]
[353381761,1739807470899,-500.0,0.00014109,2]
[353381762,1739807470908,-500.0,0.00014109,2]
[353381763,1739807470922,-500.0,0.00014109,2]
[353381764,1739807470932,-500.0,0.00014109,2]
[353381765,1739807470941,-583.65,0.00014109,2]
[353381766,1739807470951,-500.0,0.00014109,2]
[353381767,1739807470962,-500.0,0.00014109,2]
[353381768,1739807470972,-670.0,0.00014109,2]
[353381769,1739807470982,-500.0,0.00014109,2]
[353381770,1739807470991,-500.0,0.00014109,2]
[353381771,1739807471001,-500.0,0.00014109,2]
[353381772,1739807471011,-505.23,0.00014109,2]
[353381773,1739807471020,-582.08,0.00014109,2]
[353381774,1739807471029,-500.0,0.00014109,2]
[353381775,1739807471039,-500.0,0.00014109,2]
[353381776,1739807471048,-500.0,0.00014109,2]
[353381777,1739807471059,-500.0,0.00014109,2]
[353381778,1739807471070,-521.71,0.00014109,2]
[353381779,1739807471079,-351.58897075,0.00014109,2]
[353381780,1739807471089,-500.0,0.00014109,2]
[353381781,1739807471098,-500.0,0.00014109,2]
[353381782,1739807471108,-500.0,0.00014109,2]
[353381783,1739807471118,-500.0,0.00014109,2]
[353381784,1739807471127,-500.0,0.00014109,2]
[353381785,1739807471137,-500.0,0.00014109,2]
[353381786,1739807471147,-500.0,0.00014109,2]
[353381787,1739807471156,-716.0,0.00014109,2]
[353381788,1739807471166,-500.0,0.00014109,2]
[353381789,1739807471175,-724.35,0.00014109,2]
[353381790,1739807471185,-500.0,0.00014109,2]
[353381791,1739807471195,-505.21,0.00014109,2]
[353381792,1739807471204,-500.0,0.00014109,2]
[353381793,1739807471214,-500.0,0.00014109,2]
[353381794,1739807471224,-500.0,0.00014109,2]
[353381795,1739807471234,-886.78,0.00014109,2]
[353381796,1739807471243,-739.86,0.00014109,2]
[353381797,1739807471253,-500.0,0.00014109,2]
[353381798,1739807471263,-500.0,0.00014109,2]
[353381799,1739807471272,-545.59,0.00014109,2]
[353381800,1739807471282,-777.74,0.00014109,2]
[353381801,1739807471291,-500.0,0.00014109,2]
[353381802,1739807471301,-500.0,0.00014109,2]
[353381803,1739807471311,-916.92,0.00014109,2]
[353381804,1739807471324,-570.5,0.00014109,2]
[353381805,1739807471334,-194.74607385,0.00014109,2]
[353381806,1739807471344,-1159.55,0.00014109,2]
[353381807,1739807471354,-500.0,0.00014109,2]
[353381808,1739807471364,-601.32,0.00014109,2]
[353381809,1739807471373,-587.92,0.00014109,2]
[353381810,1739807471383,-534.04,0.00014109,2]
[353381811,1739807471394,-599.83,0.00014109,2]
[353381812,1739807471403,-457.97048078,0.00014109,2]
[353381813,1739807471414,-661.0,0.00014109,2]
[353381814,1739807471427,-533.51,0.00014109,2]
[353381815,1739807471437,-811.77,0.00014109,2]
[353381816,1739807471447,-500.0,0.00014109,2]
[353381817,1739807471457,-576.06,0.00014109,2]
[353381818,1739807471467,-593.38,0.00014109,2]
[353381819,1739807471477,-630.76,0.00014109,2]
[353381820,1739807471486,-714.58,0.00014109,2]
[353381821,1739807471496,-942.74,0.00014109,2]
[353381822,1739807471505,-500.0,0.00014109,2]
[353381823,1739807471515,-932.03,0.00014109,2]
[353381824,1739807471525,-851.93,0.00014109,2]
[353381825,1739807471535,-697.57,0.00014109,2]
[353381826,1739807471546,-500.0,0.00014109,2]
[353381827,1739807471556,-500.0,0.00014109,2]
[353381828,1739807471566,-500.0,0.00014109,2]
[353381829,1739807471578,-558.17,0.00014109,2]
[353381830,1739807471589,-901.05,0.00014109,2]
[353381831,1739807471599,-501.89,0.00014109,2]
[353381832,1739807471610,-958.61,0.00014109,2]
[353381833,1739807471620,-500.0,0.00014109,2]
[353381834,1739807471631,-651.14,0.00014109,2]
[353381835,1739807471640,-500.0,0.00014109,2]
[353381836,1739807471650,-715.24,0.00014109,2]
[353381837,1739807471660,-578.19,0.00014109,2]
[353381838,1739807471670,-533.54,0.00014109,2]
[353381839,1739807471680,-500.0,0.00014109,2]
[353381840,1739807471689,-500.0,0.00014109,2]
[353381841,1739807471698,-500.0,0.00014109,2]
[353381842,1739807471708,-649.57,0.00014109,2]
[353381843,1739807471718,-500.0,0.00014109,2]
[353381844,1739807471727,-658.48,0.00014109,2]
[353381845,1739807471738,-876.0,0.00014109,2]
[353381846,1739807471748,-500.0,0.00014109,2]
[353381847,1739807471758,-500.0,0.00014109,2]
[353381848,1739807471768,-500.0,0.00014109,2]
[353381849,1739807471778,-1088.47,0.00014109,2]
[353381850,1739807471788,-720.55,0.00014109,2]
[353381851,1739807471799,-806.09,0.00014109,2]
[353381852,1739807471808,-500.0,0.00014109,2]
[353381853,1739807471818,-500.0,0.00014109,2]
[353381854,1739807471829,-500.0,0.00014109,2]
[353381855,1739807471839,-946.71,0.00014109,2]
[353381856,1739807471848,-553.22,0.00014109,2]
[353381857,1739807471858,-500.0,0.00014109,2]
[353381858,1739807471868,-668.58,0.00014109,2]
[353381859,1739807471878,-500.0,0.00014109,2]
[353381860,1739807471888,-500.0,0.00014109,2]
[353381861,1739807471898,-998.85,0.00014109,2]
[353381862,1739807471907,-835.93,0.00014109,2]
[353381863,1739807471922,-500.0,0.00014109,2]
[353381864,1739807471931,-1006.39,0.00014109,2]
[353381865,1739807471941,-500.0,0.00014109,2]
[353381866,1739807471951,-500.0,0.00014109,2]
[353381867,1739807471962,-686.36,0.00014109,2]
[353381868,1739807471972,-1087.94,0.00014109,2]
[353381869,1739807471981,-820.65,0.00014109,2]
[353381870,1739807471991,-500.0,0.00014109,2]
[353381871,1739807472001,-868.32,0.00014109,2]
[353381872,1739807472010,-640.41,0.00014109,2]
[353381873,1739807472021,-538.04,0.00014109,2]
[353381874,1739807472030,-500.0,0.00014109,2]
[353381875,1739807472040,-964.43,0.00014109,2]
[353381876,1739807472050,-500.0,0.00014109,2]
[353381877,1739807472060,-500.0,0.00014109,2]
[353381879,1739807472074,-500.0,0.00014109,2]
[353381880,1739807472084,-500.0,0.00014109,2]
[353381881,1739807472095,-500.0,0.00014109,2]
[353381882,1739807472105,-1160.76,0.00014109,2]
[353381883,1739807472114,-500.0,0.00014109,2]
[353381884,1739807472125,-554.97,0.00014109,2]
[353381885,1739807472134,-500.0,0.00014109,2]
[353381886,1739807472144,-500.0,0.00014109,2]
[353381887,1739807472153,-663.55,0.00014109,2]
[353381888,1739807472163,-630.26,0.00014109,2]
[353381889,1739807472172,-551.48,0.00014109,2]
[353381890,1739807472182,-769.55,0.00014109,2]
[353381891,1739807472192,-636.61,0.00014109,2]
[353381892,1739807472202,-620.74,0.00014109,2]
[353381893,1739807472212,-622.98,0.00014109,2]
[353381894,1739807472221,-923.67,0.00014109,2]
[353381895,1739807472231,-532.9,0.00014109,2]
[353381896,1739807472240,-500.0,0.00014109,2]
[353381897,1739807472250,-726.8,0.00014109,2]
[353381898,1739807472260,-540.32,0.00014109,2]
[353381899,1739807472270,-650.65,0.00014109,2]
[353381900,1739807472280,-500.0,0.00014109,2]
[353381901,1739807472290,-1118.82,0.00014109,2]
[353381902,1739807472300,-500.0,0.00014109,2]
[353381903,1739807472310,-1078.45,0.00014109,2]